[Event "*** Titled Tuesday Blitz"]
[Site "Chess.com"]
[Date "2020.10.20"]
[Round "8"]
[White "zmeeed67"]
[Black "elohunter1999"]
[Result "0-1"]
[WhiteElo "2347"]
[BlackElo "2515"]
[TimeControl "180+1"]
[EndTime "11:35:55 PDT"]
[Termination "elohunter1999 won by resignation"]

1. e4 {[%clk 0:03:00.9]} 1... e5 {[%clk 0:02:59.3]} 2. Nf3 {[%clk 0:03:00.2]}
2... Nc6 {[%clk 0:02:59.8]} 3. c3 {[%clk 0:03:00.1]} 3... Nf6 {[%clk 0:02:51.1]}
4. d4 {[%clk 0:02:59.1]} 4... Nxe4 {[%clk 0:02:47.3]} 5. d5 {[%clk 0:02:59.1]}
5... Bc5 {[%clk 0:02:47.3]} 6. dxc6 {[%clk 0:02:58.6]} 6... Bxf2+ {[%clk
0:02:46.4]} 7. Ke2 {[%clk 0:02:58.7]} 7... bxc6 {[%clk 0:02:45.1]} 8. Qa4 {[%clk
0:02:47.7]} 8... f5 {[%clk 0:01:58.2]} 9. Nbd2 {[%clk 0:02:41.2]} 9... O-O
{[%clk 0:01:52.9]} 10. Nxe4 {[%clk 0:02:38.6]} 10... fxe4 {[%clk 0:01:53.8]} 11.
Kxf2 {[%clk 0:02:35.1]} 11... exf3 {[%clk 0:01:51.8]} 12. g3 {[%clk 0:02:29.4]}
12... d5 {[%clk 0:01:51.2]} 13. Be3 {[%clk 0:02:27.3]} 13... Rb8 {[%clk
0:01:48.1]} 14. b3 {[%clk 0:02:25]} 14... Qf6 {[%clk 0:01:35.2]} 15. Qxa7 {[%clk
0:02:01]} 15... Qg6 {[%clk 0:01:21.6]} 16. Rc1 {[%clk 0:01:46.8]} 16... Bh3
{[%clk 0:01:02.2]} 17. Bxh3 {[%clk 0:01:35.8]} 17... Ra8 {[%clk 0:01:01.2]} 18.
Qxa8 {[%clk 0:00:31.3]} 18... Rxa8 {[%clk 0:01:00.1]} 19. a4 {[%clk 0:00:31.9]}
19... Re8 {[%clk 0:00:41.2]} 20. Rhe1 {[%clk 0:00:27.9]} 20... Qh5 {[%clk
0:00:39.7]} 21. Bf1 {[%clk 0:00:22.4]} 21... Qxh2+ {[%clk 0:00:39.2]} 22. Kxf3
{[%clk 0:00:22.1]} 22... Rf8+ {[%clk 0:00:34.4]} 23. Bf4 {[%clk 0:00:22.2]}
23... exf4 {[%clk 0:00:31.5]} 0-1

[Event "*** Titled Tuesday Blitz"]
[Site "Chess.com"]
[Date "2020.10.20"]
[Round "8"]
[White "GiantThresher"]
[Black "Me_ch_an"]
[Result "1-0"]
[WhiteElo "2818"]
[BlackElo "2380"]
[TimeControl "180+1"]
[EndTime "11:35:57 PDT"]
[Termination "GiantThresher won on time"]

1. e4 {[%clk 0:03:00.9]} 1... c5 {[%clk 0:02:59.4]} 2. Nf3 {[%clk 0:03:01]} 2...
Nc6 {[%clk 0:02:59.3]} 3. Bb5 {[%clk 0:03:00.7]} 3... Qc7 {[%clk 0:02:58.2]} 4.
O-O {[%clk 0:02:59.8]} 4... e6 {[%clk 0:02:58.3]} 5. Nc3 {[%clk 0:02:58.9]} 5...
a6 {[%clk 0:02:58.2]} 6. Bxc6 {[%clk 0:02:59.1]} 6... Qxc6 {[%clk 0:02:59.1]} 7.
d4 {[%clk 0:03:00]} 7... cxd4 {[%clk 0:02:59.8]} 8. Nxd4 {[%clk 0:03:00.4]} 8...
Qc7 {[%clk 0:03:00.2]} 9. Re1 {[%clk 0:03:00.2]} 9... d6 {[%clk 0:02:55]} 10.
Bf4 {[%clk 0:02:54.6]} 10... e5 {[%clk 0:02:33.1]} 11. Nd5 {[%clk 0:02:53.1]}
11... Qd8 {[%clk 0:02:17.8]} 12. Be3 {[%clk 0:02:35.4]} 12... exd4 {[%clk
0:02:14.1]} 13. Bxd4 {[%clk 0:02:36.3]} 13... Be6 {[%clk 0:02:12.3]} 14. Bb6
{[%clk 0:02:35.5]} 14... Qc8 {[%clk 0:01:48.3]} 15. Nc7+ {[%clk 0:02:35.1]}
15... Kd7 {[%clk 0:01:40.4]} 16. c4 {[%clk 0:02:28.3]} 16... Ne7 {[%clk
0:01:27.8]} 17. Qa4+ {[%clk 0:01:58.5]} 17... Nc6 {[%clk 0:01:25.9]} 18. Nxa8
{[%clk 0:01:57.2]} 18... Qxa8 {[%clk 0:01:25.2]} 19. Rad1 {[%clk 0:01:58.1]}
19... Be7 {[%clk 0:01:20.5]} 20. e5 {[%clk 0:01:53.1]} 20... Re8 {[%clk
0:00:56]} 21. Bc5 {[%clk 0:01:46.3]} 21... Kc8 {[%clk 0:00:45]} 22. exd6 {[%clk
0:01:39.6]} 22... Bd8 {[%clk 0:00:38.1]} 23. Qc2 {[%clk 0:01:15.8]} 23... g6
{[%clk 0:00:20.2]} 24. Qd3 {[%clk 0:01:01.3]} 24... Kd7 {[%clk 0:00:20.3]} 25.
Qf3 {[%clk 0:01:01.4]} 25... b6 {[%clk 0:00:19.9]} 26. Rxe6 {[%clk 0:00:55.7]}
26... Kxe6 {[%clk 0:00:17.1]} 27. Re1+ {[%clk 0:00:54]} 1-0

[Event "*** Titled Tuesday Blitz"]
[Site "Chess.com"]
[Date "2020.10.20"]
[Round "8"]
[White "barbara25"]
[Black "sergeikim"]
[Result "0-1"]
[WhiteElo "2295"]
[BlackElo "2541"]
[TimeControl "180+1"]
[EndTime "11:35:57 PDT"]
[Termination "sergeikim won by resignation"]

1. e4 {[%clk 0:03:00.9]} 1... e5 {[%clk 0:02:59.8]} 2. Nf3 {[%clk 0:02:59.8]}
2... Nc6 {[%clk 0:02:59.7]} 3. Bb5 {[%clk 0:02:59.3]} 3... a6 {[%clk 0:02:59.5]}
4. Bxc6 {[%clk 0:02:59.4]} 4... dxc6 {[%clk 0:02:58.9]} 5. O-O {[%clk
0:03:00.3]} 5... f6 {[%clk 0:02:59.1]} 6. d4 {[%clk 0:03:00.1]} 6... exd4 {[%clk
0:02:59]} 7. Nxd4 {[%clk 0:03:00.3]} 7... Ne7 {[%clk 0:02:58]} 8. c4 {[%clk
0:02:59.9]} 8... Ng6 {[%clk 0:02:57.6]} 9. Nc3 {[%clk 0:02:59.9]} 9... Bb4
{[%clk 0:02:56.2]} 10. Be3 {[%clk 0:02:51.5]} 10... Bxc3 {[%clk 0:02:52.5]} 11.
bxc3 {[%clk 0:02:51.6]} 11... O-O {[%clk 0:02:52]} 12. Qe2 {[%clk 0:02:51.5]}
12... Qe7 {[%clk 0:02:47.5]} 13. f3 {[%clk 0:02:50.6]} 13... Re8 {[%clk
0:02:24.4]} 14. Rfe1 {[%clk 0:02:46.7]} 14... Bd7 {[%clk 0:02:15.6]} 15. Rab1
{[%clk 0:02:45.9]} 15... b6 {[%clk 0:02:13.8]} 16. Rbd1 {[%clk 0:02:44.3]} 16...
Rad8 {[%clk 0:02:11.8]} 17. c5 {[%clk 0:02:38.2]} 17... b5 {[%clk 0:02:10.3]}
18. c4 {[%clk 0:02:36.4]} 18... Ne5 {[%clk 0:01:55.1]} 19. cxb5 {[%clk
0:02:35.3]} 19... cxb5 {[%clk 0:01:51.3]} 20. Bf2 {[%clk 0:02:33.6]} 20... Nc4
{[%clk 0:01:47.7]} 21. a4 {[%clk 0:02:26.9]} 21... c6 {[%clk 0:01:46.5]} 22.
axb5 {[%clk 0:02:26.7]} 22... axb5 {[%clk 0:01:45.4]} 23. Kh1 {[%clk 0:02:20.7]}
23... Ra8 {[%clk 0:01:38.2]} 24. f4 {[%clk 0:02:05.8]} 24... Rec8 {[%clk
0:01:25.6]} 25. e5 {[%clk 0:02:02.9]} 25... fxe5 {[%clk 0:01:24.8]} 26. fxe5
{[%clk 0:02:03.2]} 26... Be6 {[%clk 0:01:24.6]} 27. Qf3 {[%clk 0:01:45.9]} 27...
Bd5 {[%clk 0:01:23.7]} 28. Qg3 {[%clk 0:01:45]} 28... Rf8 {[%clk 0:01:16.7]} 29.
Bg1 {[%clk 0:01:37]} 29... Ra2 {[%clk 0:01:12.4]} 30. Nf3 {[%clk 0:01:22.9]}
30... Qe6 {[%clk 0:01:03.1]} 31. Bd4 {[%clk 0:01:10.7]} 31... Qg6 {[%clk
0:00:57.4]} 32. Qh3 {[%clk 0:01:08.9]} 32... Rxg2 {[%clk 0:00:50]} 33. Rf1
{[%clk 0:01:02.3]} 33... Rd2 {[%clk 0:00:40.2]} 34. Rg1 {[%clk 0:00:42.1]} 34...
Rxd1 {[%clk 0:00:34.7]} 0-1

[Event "*** Titled Tuesday Blitz"]
[Site "Chess.com"]
[Date "2020.10.20"]
[Round "8"]
[White "grandcoach"]
[Black "Sueetin"]
[Result "0-1"]
[WhiteElo "2159"]
[BlackElo "2364"]
[TimeControl "180+1"]
[EndTime "11:35:58 PDT"]
[Termination "Sueetin won by resignation"]

1. e4 {[%clk 0:03:00.9]} 1... e6 {[%clk 0:03:00.1]} 2. Nf3 {[%clk 0:02:59.4]}
2... d5 {[%clk 0:02:59.9]} 3. e5 {[%clk 0:03:00]} 3... c5 {[%clk 0:02:59.7]} 4.
b4 {[%clk 0:03:00.2]} 4... b6 {[%clk 0:02:59.8]} 5. c3 {[%clk 0:02:55.5]} 5...
Ne7 {[%clk 0:02:55.3]} 6. d4 {[%clk 0:02:54.7]} 6... Nec6 {[%clk 0:02:44.8]} 7.
a3 {[%clk 0:02:51.6]} 7... Bd7 {[%clk 0:02:29.2]} 8. Bd3 {[%clk 0:02:51]} 8...
cxd4 {[%clk 0:02:26.5]} 9. cxd4 {[%clk 0:02:49.9]} 9... b5 {[%clk 0:02:21.8]}
10. Nbd2 {[%clk 0:02:33.5]} 10... a5 {[%clk 0:02:20.9]} 11. bxa5 {[%clk
0:02:22.3]} 11... Nxa5 {[%clk 0:02:20.9]} 12. O-O {[%clk 0:02:16.6]} 12... Nc4
{[%clk 0:02:19]} 13. Nb3 {[%clk 0:02:12.6]} 13... Be7 {[%clk 0:02:05.8]} 14. Nc5
{[%clk 0:02:07.2]} 14... Na6 {[%clk 0:01:55.5]} 15. Nxd7 {[%clk 0:01:52.3]}
15... Qxd7 {[%clk 0:01:54.6]} 16. a4 {[%clk 0:01:51.2]} 16... Nb4 {[%clk
0:01:44.1]} 17. Ba3 {[%clk 0:01:40.8]} 17... Nxd3 {[%clk 0:01:14.7]} 18. Bxe7
{[%clk 0:01:38.7]} 18... Qxe7 {[%clk 0:01:07.2]} 19. Qxd3 {[%clk 0:01:33.7]}
19... bxa4 {[%clk 0:01:00.6]} 20. Nd2 {[%clk 0:01:29]} 20... Nxd2 {[%clk
0:00:55.6]} 21. Rxa4 {[%clk 0:01:01.6]} 21... Rxa4 {[%clk 0:00:40]} 22. Qb5+
{[%clk 0:01:01.5]} 22... Qd7 {[%clk 0:00:40.1]} 23. Qb8+ {[%clk 0:01:00.3]}
23... Ke7 {[%clk 0:00:35.9]} 24. Qxh8 {[%clk 0:00:54.5]} 24... Nxf1 {[%clk
0:00:35.7]} 25. Qxg7 {[%clk 0:00:53.2]} 25... Kd8 {[%clk 0:00:27.6]} 26. Qf8+
{[%clk 0:00:48.1]} 26... Kc7 {[%clk 0:00:26]} 27. Qc5+ {[%clk 0:00:45.8]} 27...
Qc6 {[%clk 0:00:26.2]} 28. Qe7+ {[%clk 0:00:45]} 28... Kb6 {[%clk 0:00:26.1]}
29. Qd8+ {[%clk 0:00:40.6]} 29... Qc7 {[%clk 0:00:26.2]} 0-1

[Event "*** Titled Tuesday Blitz"]
[Site "Chess.com"]
[Date "2020.10.20"]
[Round "8"]
[White "MarkoPe"]
[Black "MaxLeto"]
[Result "1-0"]
[WhiteElo "2175"]
[BlackElo "2322"]
[TimeControl "180+1"]
[EndTime "11:36:03 PDT"]
[Termination "MarkoPe won on time"]

1. c4 {[%clk 0:03:00.9]} 1... e5 {[%clk 0:02:59.7]} 2. Nc3 {[%clk 0:02:51.5]}
2... Nf6 {[%clk 0:02:59.3]} 3. g3 {[%clk 0:02:48.9]} 3... d5 {[%clk 0:02:58.6]}
4. cxd5 {[%clk 0:02:48.7]} 4... Nxd5 {[%clk 0:02:59.5]} 5. Bg2 {[%clk
0:02:49.2]} 5... Nb6 {[%clk 0:02:59.9]} 6. Nf3 {[%clk 0:02:49.5]} 6... Nc6
{[%clk 0:03:00.1]} 7. O-O {[%clk 0:02:49.6]} 7... Be7 {[%clk 0:03:00.7]} 8. a3
{[%clk 0:02:45.2]} 8... g5 {[%clk 0:02:58.2]} 9. d3 {[%clk 0:02:43.4]} 9... g4
{[%clk 0:02:56.5]} 10. Nd2 {[%clk 0:02:42.9]} 10... h5 {[%clk 0:02:54.8]} 11.
Nc4 {[%clk 0:02:35.2]} 11... h4 {[%clk 0:02:47.2]} 12. Bxc6+ {[%clk 0:02:28]}
12... bxc6 {[%clk 0:02:44.6]} 13. Nxe5 {[%clk 0:02:28.1]} 13... hxg3 {[%clk
0:02:39.7]} 14. hxg3 {[%clk 0:02:23]} 14... Bd6 {[%clk 0:01:51.8]} 15. d4 {[%clk
0:02:11.5]} 15... Qf6 {[%clk 0:01:34]} 16. Ne4 {[%clk 0:02:09.1]} 16... Qf5
{[%clk 0:01:24.7]} 17. Qd3 {[%clk 0:01:33.9]} 17... Kf8 {[%clk 0:00:49]} 18. Bg5
{[%clk 0:01:09.7]} 18... Qh7 {[%clk 0:00:27.2]} 19. Bh4 {[%clk 0:01:08.7]} 19...
Bf5 {[%clk 0:00:24]} 20. f3 {[%clk 0:00:50.9]} 20... Rd8 {[%clk 0:00:19.6]} 21.
Nxf7 {[%clk 0:00:40.3]} 21... Kxf7 {[%clk 0:00:12.4]} 22. fxg4 {[%clk
0:00:39.7]} 22... Ke6 {[%clk 0:00:05.5]} 23. gxf5+ {[%clk 0:00:38.8]} 23... Kf7
{[%clk 0:00:01.6]} 24. Ng5+ {[%clk 0:00:38.4]} 1-0

[Event "*** Titled Tuesday Blitz"]
[Site "Chess.com"]
[Date "2020.10.20"]
[Round "8"]
[White "DenishevM"]
[Black "Chessmatus"]
[Result "0-1"]
[WhiteElo "2545"]
[BlackElo "2382"]
[TimeControl "180+1"]
[EndTime "11:36:08 PDT"]
[Termination "Chessmatus won by resignation"]

1. d4 {[%clk 0:03:00.9]} 1... Nf6 {[%clk 0:02:57.9]} 2. c4 {[%clk 0:02:59.5]}
2... g6 {[%clk 0:02:57.8]} 3. Nc3 {[%clk 0:02:57.1]} 3... d5 {[%clk 0:02:58.2]}
4. cxd5 {[%clk 0:02:58]} 4... Nxd5 {[%clk 0:02:58.9]} 5. e4 {[%clk 0:02:58.5]}
5... Nxc3 {[%clk 0:02:59.5]} 6. bxc3 {[%clk 0:02:59.4]} 6... Bg7 {[%clk
0:03:00.2]} 7. Nf3 {[%clk 0:03:00]} 7... c5 {[%clk 0:03:00.9]} 8. Be3 {[%clk
0:03:00.6]} 8... Bg4 {[%clk 0:03:00.3]} 9. Rc1 {[%clk 0:02:53.4]} 9... Qa5
{[%clk 0:02:46.4]} 10. Qd2 {[%clk 0:02:51.3]} 10... O-O {[%clk 0:02:45.4]} 11.
d5 {[%clk 0:02:39.2]} 11... Nd7 {[%clk 0:02:38.5]} 12. Be2 {[%clk 0:02:37.5]}
12... c4 {[%clk 0:02:37.4]} 13. O-O {[%clk 0:02:33.6]} 13... Nc5 {[%clk
0:02:30.1]} 14. Qc2 {[%clk 0:02:18.3]} 14... Rac8 {[%clk 0:02:29.9]} 15. Bd4
{[%clk 0:02:08.2]} 15... Bxf3 {[%clk 0:02:03.2]} 16. gxf3 {[%clk 0:01:58.8]}
16... Bxd4 {[%clk 0:02:03.4]} 17. cxd4 {[%clk 0:01:59.7]} 17... Na4 {[%clk
0:02:03.8]} 18. Rb1 {[%clk 0:01:47.4]} 18... b5 {[%clk 0:01:58.4]} 19. Qc1
{[%clk 0:01:10.3]} 19... b4 {[%clk 0:01:26.6]} 20. Qh6 {[%clk 0:00:40.9]} 20...
Nc3 {[%clk 0:01:02.6]} 21. Rb2 {[%clk 0:00:36]} 21... Nxa2 {[%clk 0:00:53.7]}
22. Ra1 {[%clk 0:00:18.5]} 22... b3 {[%clk 0:00:51.7]} 23. Bxc4 {[%clk
0:00:06.5]} 23... Qc3 {[%clk 0:00:36.7]} 24. Raxa2 {[%clk 0:00:04.5]} 24... bxa2
{[%clk 0:00:35.5]} 0-1

[Event "*** Titled Tuesday Blitz"]
[Site "Chess.com"]
[Date "2020.10.20"]
[Round "8"]
[White "suyu28"]
[Black "Tooweak2slow03"]
[Result "0-1"]
[WhiteElo "2618"]
[BlackElo "2781"]
[TimeControl "180+1"]
[EndTime "11:36:10 PDT"]
[Termination "Tooweak2slow03 won on time"]

1. e4 {[%clk 0:02:58.8]} 1... e6 {[%clk 0:03:00.9]} 2. d4 {[%clk 0:02:56.8]}
2... d5 {[%clk 0:03:01.2]} 3. Bd3 {[%clk 0:02:55.1]} 3... dxe4 {[%clk
0:02:55.1]} 4. Bxe4 {[%clk 0:02:54]} 4... Nf6 {[%clk 0:02:54]} 5. Bf3 {[%clk
0:02:54.3]} 5... Nbd7 {[%clk 0:02:50.7]} 6. Ne2 {[%clk 0:02:52.7]} 6... Bd6
{[%clk 0:02:50.5]} 7. c4 {[%clk 0:02:52]} 7... c5 {[%clk 0:02:37.8]} 8. Nbc3
{[%clk 0:02:50.7]} 8... cxd4 {[%clk 0:02:35.5]} 9. Nxd4 {[%clk 0:02:48.6]} 9...
Ne5 {[%clk 0:02:29.7]} 10. Ndb5 {[%clk 0:02:14.3]} 10... Bc5 {[%clk 0:02:25.9]}
11. Qxd8+ {[%clk 0:01:54.3]} 11... Kxd8 {[%clk 0:02:26.8]} 12. Be2 {[%clk
0:01:37.2]} 12... Ke7 {[%clk 0:02:24.7]} 13. Bf4 {[%clk 0:01:12.7]} 13... Ng6
{[%clk 0:02:24.1]} 14. Be3 {[%clk 0:01:00]} 14... Bxe3 {[%clk 0:02:20.8]} 15.
fxe3 {[%clk 0:01:00.9]} 15... Bd7 {[%clk 0:02:21]} 16. b3 {[%clk 0:00:54.6]}
16... a6 {[%clk 0:02:20.8]} 17. Nd4 {[%clk 0:00:54.2]} 17... Rac8 {[%clk
0:02:20.2]} 18. a4 {[%clk 0:00:53.7]} 18... Rhd8 {[%clk 0:02:15.2]} 19. O-O
{[%clk 0:00:47.8]} 19... e5 {[%clk 0:02:14.1]} 20. Nf3 {[%clk 0:00:40.7]} 20...
Bg4 {[%clk 0:02:10.2]} 21. h3 {[%clk 0:00:39.6]} 21... Bxf3 {[%clk 0:02:10.4]}
22. Bxf3 {[%clk 0:00:39]} 22... Rd3 {[%clk 0:02:04.8]} 23. Nd5+ {[%clk
0:00:37.7]} 23... Nxd5 {[%clk 0:02:04.7]} 24. Bxd5 {[%clk 0:00:37.8]} 24... f6
{[%clk 0:02:03.8]} 25. Bxb7 {[%clk 0:00:31.1]} 25... Rc7 {[%clk 0:02:04.1]} 26.
Bxa6 {[%clk 0:00:31]} 26... Rxb3 {[%clk 0:02:03.4]} 27. Rfe1 {[%clk 0:00:24.1]}
27... Nh4 {[%clk 0:02:00.4]} 28. Re2 {[%clk 0:00:20.2]} 28... Rd7 {[%clk
0:01:55.1]} 29. Bb5 {[%clk 0:00:18.6]} 29... Rdd3 {[%clk 0:01:53.1]} 30. a5
{[%clk 0:00:18.5]} 30... Ra3 {[%clk 0:01:51.5]} 31. Rea2 {[%clk 0:00:17.5]}
31... Rd1+ {[%clk 0:01:50.2]} 32. Kh2 {[%clk 0:00:13.8]} 32... Rxa1 {[%clk
0:01:49.4]} 33. Rd2 {[%clk 0:00:08]} 33... R1a2 {[%clk 0:01:47]} 34. Rd7+ {[%clk
0:00:07.4]} 34... Ke6 {[%clk 0:01:47.5]} 35. Rxg7 {[%clk 0:00:07.4]} 35... Rxa5
{[%clk 0:01:43.2]} 36. Bd7+ {[%clk 0:00:04.2]} 36... Kd6 {[%clk 0:01:42.6]} 37.
Bc8 {[%clk 0:00:03.2]} 37... Rc2 {[%clk 0:01:31.8]} 38. Bb7 {[%clk 0:00:02.1]}
38... Raa2 {[%clk 0:01:30.9]} 39. Bd5 {[%clk 0:00:01.3]} 39... Nf5 {[%clk
0:01:26.2]} 40. Rxh7 {[%clk 0:00:01.2]} 40... Nxe3 {[%clk 0:01:25.8]} 41. Rg7
{[%clk 0:00:01.7]} 41... Nf1+ {[%clk 0:01:24.1]} 42. Kg1 {[%clk 0:00:01.1]}
42... Ra1 {[%clk 0:01:23.4]} 0-1

[Event "*** Titled Tuesday Blitz"]
[Site "Chess.com"]
[Date "2020.10.20"]
[Round "8"]
[White "lacafi"]
[Black "sbouchet"]
[Result "0-1"]
[WhiteElo "2125"]
[BlackElo "2393"]
[TimeControl "180+1"]
[EndTime "11:36:10 PDT"]
[Termination "sbouchet won on time"]

1. d4 {[%clk 0:03:00.9]} 1... Nf6 {[%clk 0:02:58.7]} 2. Nf3 {[%clk 0:03:01]}
2... d6 {[%clk 0:02:58.5]} 3. e3 {[%clk 0:03:00.8]} 3... Nbd7 {[%clk 0:02:59.2]}
4. Be2 {[%clk 0:03:00.7]} 4... g6 {[%clk 0:02:59.9]} 5. b3 {[%clk 0:03:01]} 5...
Bg7 {[%clk 0:03:00.8]} 6. Bb2 {[%clk 0:03:01.5]} 6... O-O {[%clk 0:03:01.1]} 7.
O-O {[%clk 0:03:02]} 7... Re8 {[%clk 0:03:01.1]} 8. c4 {[%clk 0:03:01.8]} 8...
c6 {[%clk 0:03:01.5]} 9. Nbd2 {[%clk 0:02:57.8]} 9... e5 {[%clk 0:03:01.6]} 10.
dxe5 {[%clk 0:02:58]} 10... dxe5 {[%clk 0:03:01.7]} 11. Qc2 {[%clk 0:02:57.1]}
11... Qc7 {[%clk 0:03:00.2]} 12. b4 {[%clk 0:02:54.6]} 12... a5 {[%clk
0:02:59.7]} 13. a3 {[%clk 0:02:53]} 13... e4 {[%clk 0:02:57]} 14. Nd4 {[%clk
0:02:14.2]} 14... h5 {[%clk 0:02:43.2]} 15. Rfd1 {[%clk 0:02:07.7]} 15... h4
{[%clk 0:02:42.5]} 16. Rac1 {[%clk 0:01:50.5]} 16... h3 {[%clk 0:02:41.5]} 17.
g3 {[%clk 0:01:50]} 17... Nf8 {[%clk 0:02:40.5]} 18. c5 {[%clk 0:01:40.1]} 18...
N8h7 {[%clk 0:02:38.9]} 19. Nc4 {[%clk 0:01:37.6]} 19... axb4 {[%clk 0:02:37.2]}
20. axb4 {[%clk 0:01:37.5]} 20... Bg4 {[%clk 0:02:35.1]} 21. Nd6 {[%clk
0:01:35.3]} 21... Re7 {[%clk 0:02:28.8]} 22. Bxg4 {[%clk 0:01:21.1]} 22... Nxg4
{[%clk 0:02:28.7]} 23. Nxe4 {[%clk 0:01:21]} 23... Nhf6 {[%clk 0:02:18.5]} 24.
Nd6 {[%clk 0:01:17.4]} 24... Nd5 {[%clk 0:02:17.9]} 25. Qb3 {[%clk 0:01:03.3]}
25... Kh7 {[%clk 0:02:10.1]} 26. e4 {[%clk 0:00:57.7]} 26... Ndf6 {[%clk
0:02:05.8]} 27. f3 {[%clk 0:00:52.8]} 27... Ne5 {[%clk 0:02:01.6]} 28. f4 {[%clk
0:00:36]} 28... Neg4 {[%clk 0:01:59.9]} 29. Qf3 {[%clk 0:00:36.5]} 29... Ra2
{[%clk 0:01:57.2]} 30. Rc2 {[%clk 0:00:33.8]} 30... b6 {[%clk 0:01:55.5]} 31. e5
{[%clk 0:00:33.9]} 31... b5 {[%clk 0:01:52.9]} 32. exf6 {[%clk 0:00:33.2]} 32...
Nxf6 {[%clk 0:01:53.4]} 33. f5 {[%clk 0:00:29.5]} 33... Nd5 {[%clk 0:01:47.2]}
34. f6 {[%clk 0:00:17.7]} 34... Bxf6 {[%clk 0:01:42.8]} 35. Ne4 {[%clk
0:00:16.9]} 35... Bg7 {[%clk 0:01:39.8]} 36. Ng5+ {[%clk 0:00:14.3]} 36... Kg8
{[%clk 0:01:39.6]} 37. Nxb5 {[%clk 0:00:10.4]} 37... cxb5 {[%clk 0:01:19]} 38.
Qxd5 {[%clk 0:00:10]} 38... Bxb2 {[%clk 0:01:12.9]} 39. Qd2 {[%clk 0:00:05]}
39... Qe5 {[%clk 0:01:09.8]} 40. Nf3 {[%clk 0:00:02.1]} 40... Qe4 {[%clk
0:01:06.4]} 0-1

[Event "*** Titled Tuesday Blitz"]
[Site "Chess.com"]
[Date "2020.10.20"]
[Round "8"]
[White "WPWPWP-2015"]
[Black "davidkalashian"]
[Result "0-1"]
[WhiteElo "2443"]
[BlackElo "2611"]
[TimeControl "180+1"]
[EndTime "11:36:11 PDT"]
[Termination "davidkalashian won on time"]

1. e4 {[%clk 0:02:47.4]} 1... c6 {[%clk 0:02:59.1]} 2. d4 {[%clk 0:02:43.5]}
2... g6 {[%clk 0:03:00]} 3. Nc3 {[%clk 0:02:42.6]} 3... Bg7 {[%clk 0:03:00]} 4.
Nf3 {[%clk 0:02:41.4]} 4... d6 {[%clk 0:03:00.2]} 5. h3 {[%clk 0:02:41]} 5...
Nf6 {[%clk 0:03:00.5]} 6. Be2 {[%clk 0:02:40.7]} 6... O-O {[%clk 0:03:00.9]} 7.
O-O {[%clk 0:02:40.4]} 7... Nbd7 {[%clk 0:03:01.5]} 8. a4 {[%clk 0:02:39.9]}
8... e5 {[%clk 0:03:01.7]} 9. Be3 {[%clk 0:02:39.3]} 9... Qe7 {[%clk 0:02:58.2]}
10. dxe5 {[%clk 0:02:34.3]} 10... dxe5 {[%clk 0:02:57.7]} 11. a5 {[%clk
0:02:34]} 11... Nc5 {[%clk 0:02:56.9]} 12. Nd2 {[%clk 0:02:33.7]} 12... Rd8
{[%clk 0:02:50.9]} 13. Qe1 {[%clk 0:02:24]} 13... Ne6 {[%clk 0:02:47.6]} 14. Kh2
{[%clk 0:02:18.4]} 14... Nd4 {[%clk 0:02:43.2]} 15. Bd3 {[%clk 0:02:15.5]} 15...
Nd7 {[%clk 0:02:38.1]} 16. Nc4 {[%clk 0:01:58.6]} 16... Nc5 {[%clk 0:02:36.6]}
17. Qb1 {[%clk 0:01:05.7]} 17... Be6 {[%clk 0:02:29.6]} 18. Rd1 {[%clk
0:01:03.1]} 18... Rd7 {[%clk 0:01:59.3]} 19. b4 {[%clk 0:00:57.8]} 19... Nxd3
{[%clk 0:01:56]} 20. cxd3 {[%clk 0:00:58.7]} 20... Rad8 {[%clk 0:01:52.3]} 21.
Na4 {[%clk 0:00:57.1]} 21... Nb5 {[%clk 0:01:38.2]} 22. Qc2 {[%clk 0:00:52.3]}
22... Nd4 {[%clk 0:01:25.2]} 23. Qb2 {[%clk 0:00:49.5]} 23... Bxc4 {[%clk
0:01:22.5]} 24. Nc5 {[%clk 0:00:31.1]} 24... Bb5 {[%clk 0:01:17.3]} 25. Nxd7
{[%clk 0:00:29.7]} 25... Rxd7 {[%clk 0:01:18.2]} 26. Rac1 {[%clk 0:00:22.4]}
26... h5 {[%clk 0:01:16.7]} 27. Rd2 {[%clk 0:00:16.5]} 27... Qe6 {[%clk
0:01:16.3]} 28. Rcd1 {[%clk 0:00:14]} 28... Bf8 {[%clk 0:01:13.6]} 29. f3 {[%clk
0:00:08.4]} 29... a6 {[%clk 0:01:10.3]} 30. Rf2 {[%clk 0:00:07.9]} 30... Qe7
{[%clk 0:01:07.5]} 31. Bd2 {[%clk 0:00:02.6]} 31... Bxd3 {[%clk 0:01:04.9]} 32.
Bc3 {[%clk 0:00:02.8]} 32... Bb5 {[%clk 0:01:01.3]} 33. Rfd2 {[%clk 0:00:01.9]}
33... Bh6 {[%clk 0:00:58.2]} 0-1

[Event "*** Titled Tuesday Blitz"]
[Site "Chess.com"]
[Date "2020.10.20"]
[Round "8"]
[White "vaishali2001"]
[Black "teacher4chess"]
[Result "1-0"]
[WhiteElo "2563"]
[BlackElo "2062"]
[TimeControl "180+1"]
[EndTime "11:36:11 PDT"]
[Termination "vaishali2001 won by checkmate"]

1. e4 {[%clk 0:02:58.9]} 1... Nf6 {[%clk 0:02:58.7]} 2. e5 {[%clk 0:02:58.5]}
2... Nd5 {[%clk 0:02:58.6]} 3. d4 {[%clk 0:02:58.8]} 3... Nb6 {[%clk 0:02:57.6]}
4. Nf3 {[%clk 0:02:58.7]} 4... d5 {[%clk 0:02:57.6]} 5. Bd3 {[%clk 0:02:56.7]}
5... Bg4 {[%clk 0:02:56.2]} 6. h3 {[%clk 0:02:56.2]} 6... Bxf3 {[%clk
0:02:56.4]} 7. Qxf3 {[%clk 0:02:57.1]} 7... e6 {[%clk 0:02:56.1]} 8. O-O {[%clk
0:02:52]} 8... c5 {[%clk 0:02:55.5]} 9. c3 {[%clk 0:02:49]} 9... Nc6 {[%clk
0:02:55.2]} 10. Be3 {[%clk 0:02:49.3]} 10... Na4 {[%clk 0:02:50.8]} 11. Qe2
{[%clk 0:02:05.6]} 11... c4 {[%clk 0:02:49.5]} 12. Bc2 {[%clk 0:02:04.6]} 12...
Nxb2 {[%clk 0:02:48.9]} 13. f4 {[%clk 0:02:01]} 13... b5 {[%clk 0:02:28.8]} 14.
f5 {[%clk 0:01:57.5]} 14... exf5 {[%clk 0:01:40.4]} 15. Bxf5 {[%clk 0:01:58.4]}
15... Na4 {[%clk 0:01:38.9]} 16. e6 {[%clk 0:01:36.4]} 16... Bd6 {[%clk
0:00:48.5]} 17. exf7+ {[%clk 0:01:27.1]} 17... Kf8 {[%clk 0:00:47.4]} 18. Be6
{[%clk 0:01:15.8]} 18... Qh4 {[%clk 0:00:37.6]} 19. Bxd5 {[%clk 0:00:29.9]}
19... Qg3 {[%clk 0:00:36.1]} 20. Rf3 {[%clk 0:00:28.9]} 20... Qh2+ {[%clk
0:00:32.7]} 21. Kf2 {[%clk 0:00:28.6]} 21... Nb6 {[%clk 0:00:28.2]} 22. Bxc6
{[%clk 0:00:28]} 22... h5 {[%clk 0:00:18.7]} 23. Bf4 {[%clk 0:00:25.3]} 23...
Bxf4 {[%clk 0:00:17.1]} 24. Qe8+ {[%clk 0:00:25.3]} 24... Rxe8 {[%clk
0:00:15.9]} 25. fxe8=Q# {[%clk 0:00:26.2]} 1-0